bitfinex/quotes_BTCUSD_20250124
["timestamp","ask_amount","ask_price","bid_price","bid_amount"]
[1737759703541,0.0791,104850.0,104840.0,0.419666]
[1737759703805,0.0791,104850.0,104840.0,0.09734729]
[1737759704012,0.346148,104850.0,104830.0,0.267087]
[1737759704233,0.160862,104840.0,104820.0,0.419742]
[1737759704434,0.193571,104830.0,104820.0,0.09749448]
[1737759704645,0.193571,104830.0,104820.0,0.11558204]
[1737759704941,0.193571,104830.0,104820.0,0.00110104]
[1737759705196,0.193571,104830.0,104820.0,0.00014719]
[1737759705412,0.241271,104830.0,104820.0,0.00014719]
[1737759709131,0.241271,104830.0,104820.0,0.00110108]
[1737759709288,0.241271,104830.0,104820.0,0.00014719]
[1737759710072,0.241271,104830.0,104820.0,0.00110108]
[1737759710276,0.241271,104830.0,104820.0,0.00014719]
[1737759710979,0.241271,104830.0,104820.0,0.11462819]
[1737759711159,0.1268,104830.0,104820.0,0.21292937]
[1737759711378,0.1268,104830.0,104820.0,0.21197548]
[1737759714393,0.1268,104830.0,104820.0,0.21211708]
[1737759720391,0.241271,104830.0,104820.0,0.00028879]
[1737759720609,0.241271,104830.0,104820.0,0.11476979]
[1737759720815,0.236271,104830.0,104820.0,0.11476979]
[1737759721247,0.236271,104830.0,104820.0,0.11572368]
[1737759721874,0.1218,104830.0,104820.0,0.11572368]
[1737759722963,0.1218,104830.0,104820.0,0.11476979]
[1737759723188,0.236271,104830.0,104820.0,0.11572364]
[1737759725975,0.1218,104830.0,104820.0,0.11572364]
[1737759726392,0.12209758,104830.0,104820.0,0.11572364]
[1737759728438,0.23656858,104830.0,104820.0,0.11572364]
[1737759729656,0.12209758,104830.0,104820.0,0.11572364]
[1737759729780,0.23656858,104830.0,104820.0,0.11572364]
[1737759731116,0.23656858,104830.0,104820.0,0.11476979]
[1737759731446,0.23656858,104830.0,104820.0,0.11572367]
[1737759732664,0.12209758,104830.0,104820.0,0.11572367]
[1737759734122,0.12209758,104830.0,104820.0,0.36307096]
[1737759734123,0.00029758,104830.0,104820.0,0.36307096]
[1737759734365,0.00029758,104830.0,104820.0,0.37211708]
[1737759735332,5.8e-07,104830.0,104820.0,0.42474483]
[1737759735511,5.8e-07,104830.0,104820.0,0.44474483]
[1737759735729,0.07800077,104860.0,104850.0,0.284449]
[1737759735957,7.7e-07,104860.0,104850.0,0.39179629]
[1737759736192,7.7e-07,104860.0,104850.0,0.42141461]
[1737759736660,7.7e-07,104860.0,104850.0,0.36179629]
[1737759736861,0.19243877,104860.0,104850.0,0.114449]
[1737759737070,0.07800077,104860.0,104850.0,0.114449]
[1737759737281,0.07800077,104860.0,104850.0,0.11540261]
[1737759737641,0.19243877,104860.0,104840.0,0.419656]
[1737759737842,0.1236,104840.0,104830.0,0.152619]
[1737759738047,0.1236,104840.0,104830.0,0.24996629]
[1737759738666,0.1236,104840.0,104820.0,0.15291979]
[1737759738667,0.23806,104840.0,104820.0,0.15291979]
[1737759738873,0.114471,104830.0,104820.0,0.0299776]
[1737759739029,0.114471,104830.0,104820.0,0.11572358]
[1737759739230,0.114471,104830.0,104820.0,0.00124258]
[1737759740450,0.114471,104830.0,104820.0,0.00028879]
[1737759740657,0.543315,104840.0,104820.0,0.11476979]
[1737759741020,0.543315,104840.0,104820.0,0.11572363]
[1737759743479,0.114471,104830.0,104820.0,0.00124263]
[1737759743708,0.114471,104830.0,104820.0,0.00028879]
[1737759744742,0.543314,104840.0,104820.0,0.11572267]
[1737759746795,0.114471,104830.0,104820.0,0.00124267]
[1737759750458,0.114471,104830.0,104820.0,0.00028879]
[1737759750681,0.191171,104830.0,104820.0,0.00028879]
[1737759751445,0.33501829,104830.0,104820.0,0.00028879]
[1737759754414,0.34223337,104830.0,104820.0,0.00028879]
[1737759755473,0.34223337,104830.0,104780.0,0.15727758]
[1737759755474,0.0767,104790.0,104780.0,0.152692]
[1737759755729,0.0767,104790.0,104780.0,0.25148433]
[1737759755937,0.0767,104790.0,104780.0,0.40053011]
[1737759756147,0.519542,104820.0,104800.0,0.114503]
[1737759756345,0.3669,104820.0,104810.0,0.114492]
[1737759756558,0.3204,104820.0,104810.0,0.114492]
[1737759756762,0.434881,104820.0,104810.0,0.114492]
[1737759756966,0.434881,104820.0,104800.0,0.51717629]
[1737759757169,0.740169,104820.0,104800.0,0.51717629]
[1737759757376,0.191192,104810.0,104800.0,0.114503]
[1737759757849,0.343852,104810.0,104790.0,0.305359]
[1737759758119,0.343852,104810.0,104800.0,0.114503]
[1737759758740,0.114503,104800.0,104790.0,0.114505]
[1737759758936,0.161003,104800.0,104790.0,0.114505]
[1737759759151,0.313679,104800.0,104780.0,0.57038882]
[1737759759348,0.786755,104800.0,104780.0,0.66773611]
[1737759759488,0.0767,104790.0,104780.0,0.55321911]
[1737759759741,0.3204,104800.0,104790.0,0.114514]
[1737759759981,0.3204,104800.0,104790.0,0.2128154]
[1737759760237,0.3204,104800.0,104790.0,0.24153053]
[1737759760453,0.3204,104800.0,104790.0,0.21186129]
[1737759763291,0.434903,104800.0,104790.0,0.114514]
[1737759763493,0.434903,104800.0,104780.0,0.57052862]
[1737759763696,0.587578,104800.0,104780.0,0.66787591]
[1737759764140,0.587578,104800.0,104790.0,0.114514]
[1737759765727,0.434903,104800.0,104790.0,0.114514]
[1737759766381,0.587577,104800.0,104780.0,0.82056691]
[1737759766795,0.587577,104800.0,104790.0,0.114514]
[1737759769149,0.434903,104800.0,104790.0,0.114514]
[1737759771228,0.3204,104800.0,104790.0,0.114514]
[1737759771351,0.434903,104800.0,104790.0,0.114514]
[1737759772286,0.3204,104800.0,104790.0,0.114514]
[1737759772517,0.434903,104800.0,104790.0,0.1146558]
[1737759773000,0.3204,104800.0,104790.0,0.1146558]
[1737759774427,0.434903,104800.0,104790.0,0.1146558]
[1737759779406,0.511703,104800.0,104790.0,0.1146558]
[1737759780885,0.3972,104800.0,104790.0,0.1146558]
[1737759781677,0.511703,104800.0,104790.0,0.1146558]
[1737759785077,0.3972,104800.0,104790.0,0.1146558]
[1737759785280,0.3204,104800.0,104790.0,0.36295728]
[1737759785483,0.3204,104800.0,104790.0,0.41175019]
[1737759786308,0.3204,104800.0,104790.0,0.39175019]
[1737759788866,0.3204,104800.0,104790.0,0.41175019]
[1737759788997,0.23797979,104820.0,104790.0,0.41175019]
[1737759788998,0.55837979,104820.0,104810.0,0.114492]
[1737759789206,0.44389779,104820.0,104810.0,0.114492]
[1737759789413,0.55837879,104820.0,104810.0,0.114492]
[1737759789885,0.44389779,104820.0,104810.0,0.21279331]
[1737759790216,0.39739779,104820.0,104810.0,0.21183929]
[1737759790956,0.39739779,104820.0,104810.0,0.114492]
[1737759792557,0.51187879,104820.0,104810.0,0.114492]
[1737759792769,0.114492,104810.0,104800.0,0.114501]
[1737759792987,0.70994279,104820.0,104800.0,0.267164]
[1737759793210,0.55728879,104820.0,104810.0,0.114492]
[1737759793418,0.44279779,104820.0,104810.0,0.114492]
[1737759793621,0.44279779,104820.0,104810.0,0.11544604]
[1737759794171,0.44279779,104820.0,104810.0,0.114492]
[1737759796398,0.55727879,104820.0,104810.0,0.114492]
[1737759797066,0.44279779,104820.0,104810.0,0.21279328]
[1737759797270,0.32069779,104820.0,104810.0,0.21183929]
[1737759801034,0.00029779,104820.0,104810.0,0.21183929]
[1737759803168,0.00029779,104820.0,104810.0,0.21945886]
[1737759803602,7.9e-07,104820.0,104810.0,0.40245886]
[1737759803834,7.9e-07,104820.0,104810.0,0.51082443]
[1737759807469,7.9e-07,104820.0,104810.0,0.45782443]
[1737759808202,7.9e-07,104820.0,104810.0,0.46782443]
[1737759808437,7.9e-07,104820.0,104810.0,0.48782443]
[1737759808852,7.9e-07,104820.0,104810.0,0.48796623]
[1737759810314,7.9e-07,104820.0,104810.0,0.45796623]
[1737759810484,7.9e-07,104820.0,104810.0,0.41929764]
[1737759811120,7.9e-07,104820.0,104810.0,0.39929764]
[1737759811590,7.9e-07,104820.0,104810.0,0.21198109]
[1737759812223,7.9e-07,104820.0,104810.0,0.39161393]
[1737759812397,7.9e-07,104820.0,104810.0,0.21198109]
[1737759812844,0.13130079,104820.0,104810.0,0.21198109]
[1737759813052,0.13130079,104820.0,104810.0,0.0001418]
[1737759813053,0.24578179,104820.0,104810.0,0.0001418]
[1737759821633,0.08160079,104820.0,104810.0,0.21293515]
[1737759821773,7.9e-07,104820.0,104810.0,0.21198109]
[1737759822785,7.9e-07,104820.0,104810.0,0.1146338]
[1737759823000,7.9e-07,104820.0,104810.0,0.11558777]
[1737759826832,0.19008179,104820.0,104810.0,0.0001418]
[1737759827211,0.23628179,104820.0,104810.0,0.1146338]
[1737759827637,0.23628179,104820.0,104810.0,0.0001418]
[1737759827960,0.33362908,104820.0,104810.0,0.0001418]
[1737759828959,0.58864664,104820.0,104810.0,0.0001418]
[1737759829151,0.48362908,104820.0,104810.0,0.0001418]
[1737759829351,0.58864664,104820.0,104810.0,0.0001418]
[1737759829956,0.61164664,104820.0,104810.0,0.0001418]
[1737759830821,0.50662908,104820.0,104810.0,0.0001418]
[1737759831255,0.61164664,104820.0,104810.0,0.0001418]
[1737759832418,0.61994251,104820.0,104810.0,0.0001418]
[1737759840299,0.67718251,104820.0,104810.0,0.0001418]
[1737759841359,0.114503,104800.0,104790.0,0.0001418]
[1737759843312,0.33995029,104800.0,104790.0,0.0001418]
[1737759843744,0.34659029,104800.0,104790.0,0.0001418]
[1737759844891,0.49659029,104800.0,104790.0,0.0001418]
[1737759848518,0.50510438,104800.0,104790.0,0.0001418]
[1737759849726,0.54328038,104800.0,104790.0,0.0001418]
[1737759854545,0.038176,104800.0,104790.0,0.1146558]
[1737759854750,0.152679,104800.0,104790.0,0.1146558]
[1737759854949,0.152679,104800.0,104790.0,0.0001418]
[1737759855283,0.229979,104800.0,104790.0,0.0001418]
[1737759857446,0.229979,104800.0,104760.0,0.2213406]
[1737759857447,0.264536,104770.0,104760.0,0.0001418]
[1737759857617,0.48567738,104770.0,104760.0,0.0001418]
[1737759857768,0.59733494,104770.0,104760.0,0.0001418]
[1737759859002,0.114547,104760.0,104750.0,0.0001165]
[1737759859198,0.28919429,104760.0,104750.0,0.0001165]
[1737759859634,0.54421185,104760.0,104750.0,0.0001165]
[1737759860188,0.43919429,104760.0,104750.0,0.0001165]
[1737759861247,0.54421185,104760.0,104750.0,0.0001165]
[1737759861809,0.55944898,104760.0,104750.0,0.0001165]
[1737759865872,0.74416654,104760.0,104750.0,5e-07]
[1737759866652,0.7670274,104760.0,104750.0,5e-07]
[1737759866916,0.114591,104720.0,104710.0,0.0001418]
[1737759867136,0.59355585,104720.0,104710.0,0.0001418]
[1737759867293,0.397791,104720.0,104710.0,0.0001418]
[1737759867846,0.50280856,104720.0,104710.0,0.0001418]
[1737759868265,0.50280856,104720.0,104710.0,0.00028935]
[1737759868469,0.54101256,104720.0,104710.0,0.00028935]
[1737759869730,0.63835985,104720.0,104710.0,0.00028935]
[1737759870421,0.711602,104710.0,104700.0,0.27526549]
[1737759870598,0.711602,104710.0,104700.0,0.27531463]
[1737759870599,0.91396685,104710.0,104700.0,0.27531463]
[1737759871670,1.04198441,104710.0,104700.0,0.27531463]
[1737759871861,1.06498571,104710.0,104700.0,0.27531463]
[1737759872024,1.08799817,104710.0,104700.0,0.27031463]
[1737759872845,1.08799817,104710.0,104700.0,0.02765075]
[1737759872846,0.92218546,104710.0,104700.0,0.02765075]
[1737759873048,0.46436988,104700.0,104690.0,1e-06]
[1737759873256,0.46436988,104700.0,104590.0,0.01925419]
[1737759873257,0.01,104620.0,104590.0,0.01925419]
[1737759873434,0.114755,104570.0,104560.0,0.09537903]
[1737759873612,0.47751985,104570.0,104560.0,0.09442311]
[1737759873810,0.195166,104560.0,104550.0,0.04427727]
[1737759874042,0.114777,104550.0,104540.0,0.0159379]
[1737759874251,0.42643713,104550.0,104540.0,0.0109379]
[1737759874450,0.68900848,104550.0,104540.0,0.0109379]
[1737759874667,0.68900848,104550.0,104510.0,0.00010469]
[1737759874668,0.11481,104520.0,104510.0,0.00010469]
[1737759874873,0.114821,104510.0,104480.0,0.15418762]
[1737759875078,0.00475674,104510.0,104500.0,0.1580967]
[1737759875290,0.01475674,104510.0,104500.0,0.1580967]
[1737759875502,0.10210403,104510.0,104500.0,0.1580967]
[1737759875725,0.10210403,104510.0,104500.0,0.37027599]
[1737759875726,0.00475674,104510.0,104500.0,0.37027599]
[1737759875935,0.01,104540.0,104500.0,0.27544399]
[1737759876134,0.01,104550.0,104540.0,0.114788]
[1737759876544,0.01,104550.0,104540.0,0.11574446]
[1737759876792,0.01,104570.0,104560.0,0.267776]
[1737759877112,0.01495,104580.0,104570.0,0.114755]
[1737759877317,0.01,104560.0,104530.0,0.153065]
[1737759877530,0.09734729,104550.0,104530.0,0.267853]
[1737759877751,0.09535,104580.0,104530.0,0.25041229]
[1737759877752,0.40653674,104580.0,104530.0,0.25041229]
[1737759877956,0.21210429,104570.0,104540.0,0.153041]
[1737759878161,0.51511829,104570.0,104540.0,0.267825]
[1737759878368,0.51512429,104570.0,104540.0,0.267825]
[1737759878578,0.25553703,104550.0,104510.0,0.02]
[1737759878786,0.52343303,104520.0,104500.0,0.27243589]
[1737759878989,0.21216129,104520.0,104500.0,0.27243589]
[1737759879212,0.24734729,104520.0,104500.0,0.4260367]
[1737759879425,0.01,104520.0,104510.0,0.114821]
[1737759880044,0.01,104510.0,104500.0,0.3112057]
[1737759880254,0.21216829,104510.0,104500.0,0.1580967]
[1737759880652,0.01,104520.0,104510.0,0.114821]
[1737759881178,0.114821,104510.0,104500.0,0.1580967]
[1737759881381,0.21216829,104510.0,104500.0,0.1580967]
[1737759882230,0.36216829,104510.0,104500.0,0.1580967]
[1737759882841,0.70590246,104510.0,104500.0,0.1580967]
[1737759883051,0.71318246,104510.0,104500.0,0.1580967]
[1737759883259,0.44256829,104510.0,104390.0,0.21871271]
[1737759883469,0.01,104480.0,104470.0,0.114865]
[1737759883684,0.01,104460.0,104440.0,0.15414628]
[1737759883886,0.09734729,104460.0,104450.0,0.114887]
[1737759884119,0.114868,104470.0,104450.0,0.114887]
[1737759884324,0.09734729,104460.0,104450.0,0.114887]
[1737759884530,0.315024,104470.0,104460.0,0.114876]
[1737759884531,0.067,104470.0,104460.0,0.114876]
[1737759884727,0.27921329,104470.0,104450.0,0.114887]
[1737759884934,0.09734729,104460.0,104450.0,0.114887]
[1737759885747,0.18235624,104470.0,104460.0,0.114876]
[1737759885748,0.04749124,104470.0,104460.0,0.114876]
[1737759885949,0.16483853,104470.0,104460.0,0.114876]
[1737759886153,0.16580309,104470.0,104460.0,0.114876]
[1737759886559,0.16580309,104470.0,104440.0,0.153195]
[1737759886560,0.01,104450.0,104440.0,0.153195]
[1737759886784,0.00096456,104460.0,104450.0,0.153174]
[1737759886986,0.11880309,104470.0,104460.0,0.114876]
[1737759887388,0.09880309,104470.0,104460.0,0.114876]
[1737759887592,0.00049124,104470.0,104460.0,0.114876]
[1737759887769,0.00049124,104470.0,104460.0,0.21318049]
[1737759888376,0.09783853,104470.0,104460.0,0.114876]
[1737759888553,0.11880309,104470.0,104460.0,0.114876]
[1737759888739,0.0014558,104470.0,104460.0,0.114876]
[1737759888940,0.00049124,104470.0,104460.0,0.21318049]
[1737759889142,0.00049124,104470.0,104460.0,0.36222329]
[1737759890395,2.4e-07,104470.0,104460.0,0.38522329]
[1737759890616,0.17308,104530.0,104510.0,0.267901]
[1737759890842,0.01,104510.0,104500.0,0.153097]
[1737759891057,0.11481,104520.0,104500.0,0.153097]
[1737759891058,0.36523929,104520.0,104500.0,0.267923]
[1737759891265,0.00096456,104510.0,104500.0,0.114826]
[1737759891740,0.21215729,104520.0,104510.0,0.114821]
[1737759891944,0.09734729,104520.0,104510.0,0.114821]
[1737759892141,0.02,104530.0,104520.0,0.11481]
[1737759892391,0.23311085,104530.0,104520.0,0.11481]
[1737759892563,0.038272,104540.0,104530.0,0.114799]
[1737759892764,0.038272,104540.0,104520.0,0.420962]
[1737759892765,0.36615885,104540.0,104520.0,0.420962]
[1737759892967,0.312832,104550.0,104530.0,0.114799]
[1737759893323,0.60149829,104550.0,104530.0,0.267863]
[1737759893610,0.41017929,104550.0,104530.0,0.267863]
[1737759893803,0.41017929,104550.0,104530.0,0.420928]
[1737759894013,0.03,104540.0,104530.0,0.114799]
[1737759894476,0.02,104530.0,104510.0,0.267892]
[1737759894677,0.13576656,104530.0,104520.0,0.11481]
[1737759895089,0.02096456,104530.0,104520.0,0.11481]
[1737759897417,0.13576356,104530.0,104520.0,0.11481]
[1737759899413,0.01,104510.0,104500.0,0.15325134]
[1737759899612,0.28887256,104520.0,104500.0,0.11497834]
[1737759899820,0.114821,104510.0,104500.0,0.11497834]
[1737759900015,0.53834329,104520.0,104500.0,0.00014834]
[1737759900223,0.11578556,104510.0,104500.0,0.00014834]
[1737759900424,0.114821,104510.0,104500.0,0.00014834]
[1737759900630,0.01,104520.0,104510.0,0.153095]
[1737759900832,0.01,104540.0,104530.0,0.114799]
[1737759901041,0.267796,104560.0,104540.0,0.114788]
[1737759901212,0.267796,104560.0,104530.0,0.114799]
[1737759901213,0.114786,104550.0,104530.0,0.114799]
[1737759901424,0.01,104530.0,104520.0,0.153068]
[1737759901627,0.01,104520.0,104510.0,0.153094]
[1737759901877,0.440941,104530.0,104510.0,0.267909]
[1737759902013,0.00984685,104510.0,104500.0,0.303097]
[1737759902394,0.00989597,104510.0,104460.0,0.01875601]
[1737759902611,0.00989597,104510.0,104480.0,0.153138]
[1737759902612,0.38626985,104500.0,104480.0,0.153138]
[1737759902819,0.23218129,104500.0,104490.0,0.114843]
[1737759903006,0.00984685,104490.0,104480.0,0.306261]
[1737759903705,0.00984685,104500.0,104490.0,0.267963]
[1737759903880,0.00989597,104510.0,104490.0,0.267963]
[1737759904055,0.00989597,104510.0,104500.0,0.114832]
[1737759906052,4.912e-05,104510.0,104500.0,0.36313614]
[1737759906261,1.2e-07,104510.0,104500.0,0.46317929]
[1737759906472,1.2e-07,104510.0,104500.0,0.49269871]
[1737759907118,1.2e-07,104510.0,104500.0,0.46969871]
[1737759907327,1.2e-07,104510.0,104500.0,0.36217929]
[1737759907540,1.2e-07,104510.0,104500.0,0.41477797]
[1737759907968,0.00804697,104520.0,104510.0,0.15]
[1737759908173,0.00804697,104520.0,104510.0,0.30323134]
[1737759908384,0.00804697,104520.0,104510.0,0.45631734]
[1737759908721,0.00804697,104520.0,104510.0,0.48598536]
[1737759909333,0.00834539,104530.0,104520.0,0.11481]
[1737759909564,0.00834539,104530.0,104520.0,0.39278196]
[1737759909565,0.00029842,104530.0,104520.0,0.39278196]
[1737759909777,0.00029842,104530.0,104520.0,0.39182531]
[1737759910259,0.00834539,104530.0,104520.0,0.39182531]
[1737759910677,0.00834539,104530.0,104520.0,0.29447802]
[1737759910879,0.00934539,104530.0,104520.0,0.29447802]
[1737759911288,0.00129842,104530.0,104520.0,0.29447802]
[1737759911467,0.00934539,104530.0,104520.0,0.29447802]
[1737759912297,0.00129842,104530.0,104520.0,0.29447802]
[1737759912703,0.00934539,104530.0,104520.0,0.29447802]
[1737759913378,0.00129842,104530.0,104520.0,0.39182531]
[1737759913805,0.00129842,104530.0,104520.0,0.24182531]
[1737759914014,0.00934539,104530.0,104520.0,0.24182531]
[1737759914220,0.00129842,104530.0,104520.0,0.41482531]
[1737759915017,4.2e-07,104530.0,104520.0,0.41482531]
[1737759915721,0.00304739,104570.0,104560.0,0.114766]
[1737759916930,0.00304739,104570.0,104560.0,0.11491434]
[1737759917087,0.00404739,104570.0,104560.0,0.11491434]
[1737759917304,0.134755,104570.0,104560.0,0.11491434]
[1737759917510,0.02,104570.0,104560.0,0.11491434]
[1737759917711,0.001,104570.0,104560.0,0.11587068]
[1737759917906,0.001,104570.0,104560.0,0.21321797]
[1737759918162,0.00404739,104570.0,104560.0,0.21226163]
[1737759919118,0.001,104570.0,104560.0,0.11491434]
[1737759919979,0.13571056,104580.0,104570.0,0.114755]
[1737759920178,0.02,104580.0,104570.0,0.114755]
[1737759920383,0.04866,104590.0,104580.0,0.114744]
[1737759920586,0.02,104580.0,104570.0,0.114755]
[1737759920862,0.02,104580.0,104510.0,0.0001421]
[1737759920863,0.078,104540.0,104510.0,0.0001421]
[1737759921084,0.11481,104520.0,104510.0,0.0001421]
[1737759921293,0.22312185,104520.0,104510.0,0.0001421]
[1737759921506,0.22215729,104520.0,104510.0,0.0001421]
[1737759921931,0.38515729,104520.0,104510.0,0.0001421]
[1737759922356,0.44239729,104520.0,104510.0,0.00029016]
[1737759923314,0.41939729,104520.0,104510.0,0.00029016]
[1737759923517,0.47809729,104520.0,104510.0,0.00129016]
[1737759924097,0.114843,104490.0,104480.0,0.0001421]
[1737759924314,0.45694779,104490.0,104480.0,0.00019122]
[1737759924524,0.45598323,104490.0,104480.0,0.00019122]
[1737759924730,0.21219029,104490.0,104480.0,0.00019122]
[1737759925583,0.45598323,104490.0,104480.0,0.00019122]
[1737759925793,0.46598323,104490.0,104480.0,0.00019122]
[1737759926220,0.48401218,104490.0,104480.0,0.00019122]
[1737759926432,0.24121924,104490.0,104480.0,0.00019122]
[1737759927273,0.48501218,104490.0,104480.0,0.00019122]
[1737759927485,0.49501218,104490.0,104480.0,0.00019122]
[1737759927697,0.24121924,104490.0,104480.0,0.00019122]
[1737759927908,0.14637624,104490.0,104480.0,0.00019122]
[1737759928115,0.02902895,104490.0,104480.0,0.11504522]
[1737759928546,0.02902895,104490.0,104480.0,0.21334956]
[1737759928752,0.02902895,104490.0,104480.0,0.36239251]
[1737759929165,0.02902895,104490.0,104480.0,0.38539251]
[1737759929368,0.001,104490.0,104480.0,0.38539251]
[1737759930544,0.00304739,104510.0,104500.0,0.114832]
[1737759930782,0.00304739,104510.0,104500.0,0.09830406]
[1737759931017,0.00304739,104510.0,104500.0,0.21313606]
[1737759931218,0.00304739,104510.0,104500.0,0.114832]
[1737759931423,0.13577756,104520.0,104500.0,0.267941]
[1737759931842,0.001,104510.0,104500.0,0.267941]
[1737759931977,0.001,104510.0,104500.0,0.114832]
[1737759932389,0.001,104510.0,104500.0,0.21217929]
[1737759932600,0.001,104510.0,104500.0,0.36217929]
[1737759932797,0.001,104510.0,104500.0,0.46317929]
[1737759933011,0.02,104550.0,104530.0,0.114799]
[1737759933231,0.00304739,104540.0,104530.0,0.26881256]
[1737759933429,0.02,104550.0,104540.0,0.267825]
[1737759933635,0.28875656,104560.0,104540.0,0.267825]
[1737759933835,0.38610385,104560.0,104540.0,0.267825]
[1737759934047,0.02,104550.0,104540.0,0.267825]
[1737759934247,0.05,104550.0,104540.0,0.153045]
[1737759934457,0.02,104550.0,104540.0,0.153045]
[1737759934668,0.021,104550.0,104540.0,0.153045]
[1737759935079,0.001,104550.0,104540.0,0.153045]
[1737759935444,0.00404739,104550.0,104540.0,0.153045]
[1737759936810,0.00276939,104550.0,104540.0,0.153045]
[1737759937015,0.00376939,104550.0,104540.0,0.153045]
[1737759940074,0.00276939,104530.0,104520.0,0.114804]
[1737759940315,0.00276939,104540.0,104530.0,0.114799]
[1737759940553,0.11931185,104550.0,104540.0,0.114788]
[1737759940554,0.00376939,104550.0,104540.0,0.114788]
[1737759941545,0.00276939,104550.0,104540.0,0.114788]
[1737759942589,0.00306781,104550.0,104540.0,0.114788]
[1737759942790,0.02306781,104550.0,104540.0,0.114788]
[1737759943221,0.00406781,104550.0,104540.0,0.114788]
[1737759944774,0.00129842,104550.0,104540.0,0.36309176]
[1737759944989,0.00129842,104550.0,104540.0,0.36213529]
[1737759946075,0.00029842,104550.0,104540.0,0.36213529]
[1737759946481,0.00129842,104550.0,104540.0,0.36213529]
[1737759947123,0.00129842,104550.0,104540.0,0.46553529]
[1737759947531,0.00129842,104550.0,104540.0,0.49509236]
[1737759949390,0.00029842,104550.0,104540.0,0.36213529]
[1737759949610,0.00129842,104550.0,104540.0,0.36213529]
[1737759949856,0.00129842,104550.0,104540.0,0.21213529]
[1737759949857,0.00029842,104550.0,104540.0,0.21213529]
[1737759950066,0.00406781,104550.0,104540.0,0.114788]
[1737759950472,0.00306781,104550.0,104540.0,0.114788]
[1737759950674,0.00406781,104550.0,104540.0,0.114788]
[1737759950902,0.11885181,104550.0,104530.0,0.114799]
[1737759951139,0.00276939,104530.0,104520.0,0.15307]
[1737759951336,0.00276939,104530.0,104520.0,0.25041729]
[1737759951867,0.00276939,104520.0,104500.0,0.39111967]
[1737759952097,0.00276939,104520.0,104510.0,0.114821]
[1737759953193,0.00276939,104510.0,104500.0,0.08491167]
[1737759954009,0.134821,104510.0,104500.0,0.08491167]
[1737759954640,0.02276939,104500.0,104490.0,0.114842]
[1737759955291,0.00276939,104490.0,104480.0,0.1149951]
[1737759955510,0.114843,104490.0,104480.0,0.0001421]
[1737759955930,0.569469,104500.0,104480.0,0.0001421]
[1737759956145,0.570469,104500.0,104480.0,0.0001421]
[1737759956388,0.00096456,104490.0,104480.0,0.0001421]
[1737759956626,0.11680756,104490.0,104480.0,0.0001421]
[1737759956875,0.114843,104490.0,104480.0,0.0001421]
[1737759957456,0.02,104490.0,104480.0,0.0001421]
[1737759957664,0.114843,104490.0,104480.0,0.0001421]
[1737759958127,0.55047,104500.0,104480.0,0.1149951]
[1737759958371,0.114843,104490.0,104480.0,0.11504422]
[1737759958615,0.134843,104490.0,104480.0,0.00019122]
[1737759958868,0.115843,104490.0,104480.0,0.11504522]
[1737759959079,0.24324,104500.0,104480.0,0.26818122]
[1737759959301,0.396351,104500.0,104480.0,0.26818122]
[1737759959506,0.397351,104500.0,104480.0,0.26818122]
[1737759959901,0.001,104490.0,104480.0,0.26818122]
[1737759960116,0.001,104490.0,104480.0,0.11504522]
[1737759960337,0.549462,104500.0,104480.0,0.26818122]
[1737759960545,0.550462,104500.0,104480.0,0.26818122]
[1737759961326,0.417351,104500.0,104480.0,0.00019122]
[1737759961595,0.134843,104490.0,104480.0,0.00019122]
[1737759962277,0.135843,104490.0,104480.0,0.00019122]
[1737759962512,0.13680756,104490.0,104480.0,0.00019122]
[1737759963204,0.13680756,104490.0,104480.0,0.23534522]
[1737759963205,0.00473395,104490.0,104480.0,0.23534522]
[1737759963430,0.135843,104490.0,104480.0,0.00019122]
[1737759963659,0.23415485,104490.0,104480.0,0.00019122]
[1737759963938,0.21319029,104490.0,104480.0,0.00019122]
[1737759964841,0.001,104490.0,104480.0,0.11504522]
[1737759965318,0.09834729,104490.0,104480.0,0.00019122]
[1737759965501,0.21219029,104490.0,104480.0,0.00019122]
[1737759966472,0.21319029,104490.0,104480.0,0.00019122]
[1737759966965,0.21219029,104490.0,104480.0,0.00019122]
[1737759968157,0.21319029,104490.0,104480.0,0.00019122]
[1737759968377,1.42633029,104490.0,104480.0,0.00019122]
[1737759969424,1.45438274,104490.0,104480.0,0.00019122]
[1737759969647,1.45438274,104490.0,104430.0,0.153202]
[1737759969648,0.134887,104450.0,104430.0,0.153202]
[1737759969870,0.00096456,104440.0,104430.0,0.153202]
[1737759970107,0.11734729,104450.0,104430.0,0.1532]
[1737759970406,0.02096456,104450.0,104440.0,0.114898]
[1737759970884,0.00276939,104460.0,104450.0,0.114887]
[1737759971096,0.00291745,104460.0,104450.0,0.114887]
[1737759971560,0.02014806,104460.0,104450.0,0.114887]
[1737759971812,0.38554935,104460.0,104440.0,0.114898]
[1737759972055,0.02096456,104450.0,104440.0,0.114898]
[1737759972300,0.23319885,104450.0,104440.0,0.114898]
[1737759972548,0.02,104440.0,104430.0,0.114908]
[1737759973291,0.00276939,104450.0,104440.0,0.114898]
[1737759973819,0.00014806,104460.0,104450.0,0.114887]
[1737759974030,0.00014806,104460.0,104450.0,0.21319154]
[1737759974246,0.00014806,104460.0,104450.0,0.36223429]
[1737759974670,0.00014806,104460.0,104450.0,0.38523429]
[1737759974880,0.00276939,104500.0,104490.0,0.114843]
[1737759975089,0.00291127,104500.0,104490.0,0.114843]
[1737759975727,0.00014188,104500.0,104490.0,0.114843]
[1737759975943,0.00014188,104500.0,104490.0,0.36314723]
[1737759976151,0.00014188,104500.0,104490.0,0.36219029]
[1737759976574,0.00114188,104500.0,104490.0,0.36219029]
[1737759976744,0.00014188,104500.0,104490.0,0.36219029]
[1737759976966,0.00114188,104500.0,104490.0,0.36219029]
[1737759978245,0.00014188,104500.0,104490.0,0.36219029]
[1737759978664,0.00114188,104500.0,104490.0,0.36219029]
[1737759979681,0.00391127,104500.0,104490.0,0.114843]
[1737759980330,0.02114188,104500.0,104490.0,0.114843]
[1737759980976,0.23332117,104500.0,104480.0,0.268116]
[1737759981193,0.00391127,104500.0,104480.0,0.25061529]
[1737759981411,0.13576356,104530.0,104520.0,0.11481]
[1737759981629,0.11831185,104530.0,104520.0,0.11481]
[1737759981862,0.23311085,104530.0,104520.0,0.11481]
[1737759982075,0.134821,104510.0,104490.0,0.153115]
[1737759982285,0.02196456,104500.0,104490.0,0.267953]
[1737759982507,0.02196456,104500.0,104480.0,0.000142]
[1737759982508,0.114843,104490.0,104480.0,0.000142]
[1737759982720,0.21315485,104490.0,104480.0,0.000142]